fUSD/lending_fUSD_20240422
["ID","MTS","AMOUNT","RATE_DAILY","PERIOD"]
[323171387,1713768631708,-751.5043433,0.000143,2]
[323171388,1713768631717,-300.0,0.00014397,2]
[323171389,1713768631726,-150.0,0.00014397,2]
[323171390,1713768631736,-153.68,0.00014426,2]
[323171391,1713768631745,-167.59,0.00014513,2]
[323171392,1713768631755,-460.04,0.00014515,2]
[323171393,1713768631764,-167.34,0.00014528,2]
[323171394,1713768631773,-153.68,0.00014575,2]
[323171395,1713768631783,-450.0,0.00014584,2]
[323171396,1713768631792,-153.68,0.00014724,2]
[323171397,1713768631801,-304.88,0.00014792,2]
[323171398,1713768631811,-226.959536,0.00014795,2]
[323171399,1713768631820,-684.1278,0.0001485,2]
[323171400,1713768631830,-153.68,0.00014872,2]
[323171401,1713768631840,-1003.58892299,0.00014899,2]
[323171402,1713768631849,-399.5630315,0.000149,2]
[323171403,1713768631858,-9153.32369637,0.00014902,2]
[323171407,1713768632321,-2280.58687834,0.00014902,2]
[323171408,1713768632339,-1127.70599105,0.00014902,2]
[323171409,1713768632348,-624.48127903,0.00015,2]
[323171410,1713768632375,-2784.48495281,0.00015,2]
[323171411,1713768632387,-326.94545494,0.00015,2]
[323171412,1713768632876,-1264.08831322,0.00015,2]
[323171413,1713768632885,-700.0,0.00015002,2]
[323171414,1713768632895,-153.68,0.00015021,2]
[323171415,1713768632905,-245.29,0.00015056,2]
[323171416,1713768632914,-180.36282526,0.00015067,2]
[323171417,1713768632926,-1234.38584747,0.00015067,2]
[323171418,1713768632937,-3864.009347,0.00015067,2]
[323171419,1713768632949,-530.0,0.00015067,2]
[323171420,1713768633040,-1395.5339715,0.00015067,2]
[323171431,1713768637521,-12237.09312621,0.00015067,2]
[323171432,1713768637536,-275.68,0.00015067,2]
[323171433,1713768637547,-17900.42015377,0.00015067,2]
[323171434,1713768637556,-757.46,0.00015068,2]
[323171435,1713768637565,-419.06,0.00015068,2]
[323171436,1713768637575,-419.06,0.00015068,2]
[323171437,1713768637585,-418.58,0.00015068,2]
[323171438,1713768637595,-150.0,0.00015068,2]
[323171439,1713768637604,-150.0,0.00015068,2]
[323171440,1713768637613,-150.0,0.00015068,2]
[323171441,1713768637623,-418.94,0.00015068,2]
[323171442,1713768637632,-150.0,0.00015068,2]
[323171443,1713768637641,-1544.96366674,0.00015086,2]
[323171444,1713768637651,-3460.51043021,0.00015208,2]
[323171445,1713768637662,-757.46,0.00015342,2]
[323171446,1713768637672,-3114.09088976,0.00015499,2]
[323171447,1713768637682,-2602.55,0.000155,2]
[323171448,1713768637691,-150.0,0.000155,2]
[323171449,1713768637701,-1293.76132614,0.00015559,2]
[323171450,1713768637711,-400.0,0.000156,5]
[323171451,1713768637721,-2720.07957976,0.00015614,7]
[323171452,1713768637731,-757.46,0.00015616,2]
[323171453,1713768637741,-226.959536,0.00015616,2]
[323171454,1713768637751,-503.0,0.00015617,2]
[323171455,1713768637760,-1684.0,0.00015617,2]
[323171456,1713768637771,-200.0,0.00015674,2]
[323171457,1713768637780,-800.0,0.000157,5]
[323171458,1713768637790,-1200.0,0.000158,5]
[323171459,1713768637799,-700.0,0.00015824,2]
[323171460,1713768637809,-167.04,0.00015831,2]
[323171461,1713768637818,-167.19,0.00015831,2]
[323171462,1713768637828,-210.0,0.00015836,2]
[323171463,1713768637838,-757.46,0.0001589,2]
[323171464,1713768637848,-366.03,0.0001589,3]
[323171465,1713768637857,-150.0,0.0001589,2]
[323171466,1713768637866,-150.0,0.0001589,2]
[323171467,1713768637876,-239.62957027,0.000159,2]
[323171468,1713768637886,-7995.08603545,0.000159,2]
[323171469,1713768637905,-5950.14032621,0.000159,2]
[323171470,1713768637963,-6802.88193834,0.000159,2]
[323171472,1713768637973,-3842.78670152,0.000159,2]
[323171473,1713768637982,-16129.9246,0.000159,2]
[323171474,1713768637991,-18623.8202,0.000159,2]
[323171475,1713768638000,-1600.0,0.000159,5]
[323171476,1713768638009,-539.96,0.0001594,2]
[323171477,1713768638018,-2121.51363147,0.00015952,2]
[323171478,1713768638027,-155.87,0.0001599,2]
[323171479,1713768638036,-57682.48996726,0.00016,2]
[323171480,1713768638045,-1850.0,0.00016,2]
[323171481,1713768638054,-150.0,0.00016,2]
[323171482,1713768638064,-1000.0,0.00016,2]
[323171483,1713768638073,-757.46,0.00016164,2]
[323171484,1713768638084,-988.9306,0.00016238,2]
[323171485,1713768638093,-154.10473008,0.00016273,2]
[323171486,1713768638102,-240.39890377,0.00016278,2]
[323171487,1713768638111,-7500.0,0.0001628,2]
[323171488,1713768638121,-2000.0,0.000163,2]
[323171489,1713768638130,-794.87377694,0.00016325,2]
[323171490,1713768638139,-9959.17943614,0.00016328,2]
[323171491,1713768638274,-4546.56222772,0.00016328,2]
[323171492,1713768638283,-460.04,0.0001633,2]
[323171493,1713768638292,-972.7828849,0.00016338,2]
[323171494,1713768638301,-4871.61488738,0.00016338,2]
[323171501,1713768642345,-435.79509967,0.00016338,2]
[323171502,1713768642386,-279.7103475,0.00016338,2]
[323171507,1713768642979,-1434.32772911,0.00016338,2]
[323171508,1713768642991,-2978.55193634,0.00016338,2]
[323171509,1713768643000,-240.39890371,0.00016351,2]
[323171510,1713768643010,-204.99865099,0.0001637,2]
[323171511,1713768643019,-151.13,0.0001637,2]
[323171512,1713768643028,-151.13,0.0001637,2]
[323171513,1713768643038,-151.13,0.0001637,2]
[323171514,1713768643047,-151.13,0.0001637,2]
[323171515,1713768643057,-1558.77100647,0.00016378,2]
[323171516,1713768643066,-255.3668917,0.00016378,2]
[323171517,1713768643075,-1992.96083559,0.00016378,2]
[323171518,1713768643086,-2828.6807098,0.00016378,2]
[323171519,1713768643095,-1063.20534889,0.00016378,2]
[323171520,1713768643104,-155.33901529,0.00016378,2]
[323171521,1713768643114,-422.50799508,0.00016378,2]
[323171522,1713768643123,-404.63791958,0.00016379,2]
[323171523,1713768643133,-1354.11078683,0.00016379,2]
[323171538,1713768646959,-207.33406528,0.00016325,2]
[323171539,1713768646972,-149.12203472,0.00016378,2]
[323171540,1713768646998,-485.15276364,0.00016378,2]
[323171541,1713768686419,2540.91199305,0.00012284,2]
[323171542,1713768690957,856.1625257,0.00012284,2]
[323171543,1713768690981,1684.74946735,0.00012284,2]
[323171545,1713768727598,2315.25053265,0.00012,2]
[323171546,1713768727621,225.6614604,0.00012,2]
[323171548,1713768744605,-93726.99905937,0.00013,2]
[323171549,1713768745279,501.22565545,0.00012,2]
[323171551,1713768839493,3273.11288415,0.00012,2]
[323171552,1713768839513,3139.36565527,0.00012,2]
[323171553,1713768848216,195.71648188,0.00012,2]
[323171566,1713769108052,155.0,0.00012,2]
[323171567,1713769109846,155.0,0.00012,2]
[323171568,1713769109887,173.04930782,0.00012,2]
[323171569,1713769112670,181.86855503,9.6e-05,2]
[323171570,1713769112692,65.95159943,9.6e-05,2]
[323171571,1713769113526,344.38092617,0.00012,2]
[323171572,1713769113578,298.75740407,0.00012,2]
[323171573,1713769121727,155.0,0.00012,2]
[323171574,1713769121784,179.64513915,0.00012,2]
[323171575,1713769124542,352.49156069,0.00012,2]
[323171576,1713769126050,155.0,0.00012,2]
[323171577,1713769129474,298.3694264,0.00012,2]
[323171578,1713769131492,212.81351382,0.00012,2]
[323171579,1713769131862,173.87426256,0.00012,2]
[323171580,1713769133959,155.0,0.00012,2]
[323171581,1713769139611,159.17219393,0.00012,2]
[323171582,1713769139728,179.64513915,0.00012,2]
[323171583,1713769144951,155.0,0.00012,2]
[323171584,1713769151828,155.0,0.00012,2]
[323171585,1713769156074,275.38197147,0.00012,2]
[323171586,1713769156165,191.91530623,0.0001194,2]
[323171587,1713769161496,-2321.4612004,0.00012799,2]
[323171588,1713769169831,155.0,0.00012,2]
[323171590,1713769187135,155.0,0.00012,2]
[323171591,1713769188504,155.0,0.00012,2]
[323171594,1713769210123,192.30003962,0.00012,2]
[323171598,1713769219142,271.02690616,0.00012,2]
[323171601,1713769273711,182.78,0.00011869,2]
[323171602,1713769292296,-423.55999838,0.000128,2]
[323171603,1713769292323,-3576.44000162,0.00012898,2]
[323171604,1713769292972,-199.90143373,0.00012898,2]
[323171605,1713769434810,2830.7261702,0.00012899,2]
[323171613,1713769558639,969.37239607,0.00012899,2]
[323171614,1713769558659,917.77838405,0.00012899,2]
[323171616,1713769614749,-5350.0,0.0001799,23]
[323171617,1713769614771,-50.0,0.0001799,24]
[323171618,1713769633324,432.44,0.00012861,2]
[323171619,1713769688715,1258.10052008,0.00012899,2]
[323171621,1713769740676,984.89,0.00014653,3]
[323171654,1713769832150,-1462.24213851,0.000129,2]
[323171657,1713769832163,-656.10899353,0.000129,2]
[323171674,1713769832239,-397.84990812,0.000129,2]
[323171678,1713769832249,-150.0,0.00012999,2]
[323171681,1713769832259,-2302.0,0.00013,2]
[323171684,1713769832267,-3000.0,0.00013,2]
[323171686,1713769832277,-250.0,0.000137,2]
[323171688,1713769832286,-600.0,0.0001418,2]
[323171691,1713769832295,-158.871675,0.00014521,2]
[323171692,1713769832307,-23890.0,0.00014762,2]
[323171693,1713769832316,-1505.74,0.00014769,2]
[323171694,1713769832325,-1960.29,0.00014804,2]
[323171695,1713769832334,-537.74,0.00014804,2]
[323171696,1713769832344,-6145.23,0.00014804,2]
[323171697,1713769832355,-153.7,0.0001485,2]
[323171698,1713769832364,-251.99,0.00014857,2]
[323171699,1713769832373,-1430.07,0.00014864,2]
[323171700,1713769832383,-181.86,0.00014864,2]
[323171701,1713769832394,-499.99,0.00014879,2]
[323171702,1713769832403,-8158.89900459,0.0001488,2]
[323171703,1713769832415,-2365.71554263,0.0001488,2]
[323171704,1713769832427,-6287.00639652,0.0001488,2]
[323171705,1713769832485,-1930.0354891,0.0001488,2]
[323171758,1713769837865,-499.57691672,0.0001488,2]
[323171759,1713769837874,-354.16,0.0001488,2]
[323171761,1713769837884,-474.80308328,0.00014908,2]
[323171763,1713769837895,-378.88143139,0.00014908,2]
[323171769,1713769838083,-146.31548533,0.00014908,2]
[323171770,1713769838092,-163.45,0.00014946,2]
[323171771,1713769838102,-200.0,0.00014964,2]
[323171772,1713769838111,-335.25451467,0.00015,2]
[323171780,1713769839983,-450.01300863,0.00015,2]
[323171793,1713769842782,-405.61302134,0.00015,2]
[323171794,1713769842794,-1124.81695055,0.00015,2]
[323171795,1713769842883,-836.9025048,0.00015,2]
[323171796,1713769842893,-5000.0,0.00015,2]
[323171797,1713769842902,-884.0,0.00015,2]
[323171798,1713769842911,-600.0,0.00015002,2]
[323171799,1713769842920,-153.7,0.00015043,2]
[323171800,1713769842930,-9635.9352383,0.00015067,5]
[323171852,1713769843676,-7424.62943636,0.00015067,5]
[323171855,1713769843686,-3691.098,0.00015067,2]
[323171857,1713769843696,-432.44,0.00015124,2]
[323171858,1713769843706,-153.7,0.00015236,2]
[323171861,1713769843718,-158.871675,0.00015342,2]
[323171862,1713769843728,-9036.47264662,0.0001539,2]
[323171864,1713769843739,-9602.29730997,0.000154,2]
[323171867,1713769843750,-153.7,0.0001543,2]
[323171869,1713769843761,-150.0,0.000155,2]
[323171871,1713769843772,-1180.29148574,0.00015559,7]
[323171872,1713769843782,-400.0,0.000156,5]
[323171875,1713769843792,-153.7,0.00015623,2]
[323171877,1713769843801,-900.0,0.000157,5]
[323171878,1713769843810,-1058.7341,0.000158,2]
[323171880,1713769843822,-660.7235,0.000158,2]
[323171882,1713769843832,-9160.951,0.000158,2]
[323171885,1713769843842,-1583.445,0.000158,2]
[323171886,1713769843852,-1400.0,0.000158,5]
[323171889,1713769843862,-600.0,0.00015824,2]
[323171890,1713769843871,-167.11,0.00015831,2]
[323171892,1713769843881,-166.91,0.00015831,2]
[323171895,1713769843892,-200.0,0.00015865,2]
[323171897,1713769843902,-419.06,0.0001589,2]
[323171899,1713769843912,-150.0,0.0001589,2]
[323171901,1713769843922,-162.7,0.0001589,2]
[323171903,1713769843932,-150.0,0.0001589,2]
[323171905,1713769843941,-153.1504,0.000159,2]
[323171906,1713769843951,-1800.0,0.000159,5]
[323171909,1713769843961,-19093.62268324,0.00015945,2]
[323171910,1713769843971,-150.0,0.00016,2]
[323171913,1713769843980,-1000.0,0.00016,2]
[323171914,1713769843989,-300.0,0.0001612,2]
[323171916,1713769843999,-183.4169499,0.00016146,2]
[323171918,1713769844008,-158.871675,0.00016164,2]
[323171920,1713769844017,-350.29,0.00016164,2]
[323171922,1713769844026,-910.03,0.00016219,2]
[323171925,1713769844036,-413.42,0.00016219,2]
[323171927,1713769844046,-413.42,0.00016219,2]
[323171929,1713769844056,-910.03,0.00016219,2]
[323171931,1713769844072,-412.25,0.00016219,2]
[323171933,1713769844082,-910.03,0.00016219,2]
[323171935,1713769844092,-243.24,0.00016219,2]
[323171937,1713769844103,-1000.0,0.0001622,2]
[323171939,1713769844112,-1867.9053,0.00016238,2]
[323171940,1713769844121,-300.0,0.00016274,2]
[323171942,1713769844131,-466.9004174,0.0001628,2]
[323171944,1713769844141,-14872.38674715,0.0001628,2]
[323171946,1713769844149,-751.96937004,0.0001628,2]
[323171948,1713769844158,-179.26683239,0.0001628,2]
[323171950,1713769844168,-7500.0,0.0001628,2]
[323171952,1713769844177,-3840.56294109,0.0001628,2]
[323171954,1713769844187,-751.96937002,0.00016295,2]
[323171956,1713769844196,-751.96937002,0.00016309,2]
[323171958,1713769844205,-751.96937002,0.00016324,2]
[323171960,1713769844215,-200.0,0.00016328,2]
[323171962,1713769844224,-1000.0,0.00016328,2]
[323171964,1713769844234,-751.96937002,0.00016338,2]
[323171966,1713769844243,-1219.09040486,0.00016338,2]
[323171968,1713769844252,-11969.96367032,0.00016338,2]
[323171970,1713769844262,-198.16503872,0.00016338,2]
[323171972,1713769844271,-648.52192328,0.00016338,2]
[323171974,1713769844280,-10000.0,0.00016338,2]
[323171976,1713769844289,-466.90041738,0.00016354,2]
[323171978,1713769844298,-197.45861518,0.0001637,2]
[323171980,1713769844307,-151.14,0.0001637,2]
[323171982,1713769844318,-151.14,0.0001637,2]
[323171985,1713769844328,-151.14,0.0001637,2]
[323171986,1713769844338,-151.14,0.0001637,2]
[323171988,1713769844347,-155.87,0.0001637,2]
[323171990,1713769844356,-3267.95663341,0.00016378,2]
[323171993,1713769844365,-637.6400615,0.00016378,2]
[323171995,1713769844374,-207.72132305,0.00016378,2]
[323171997,1713769844383,-255.3668917,0.00016378,2]
[323171999,1713769844393,-155.02897585,0.00016378,2]
[323172001,1713769844402,-3006.83065527,0.00016378,2]
[323172003,1713769844412,-1470.3181486,0.00016378,2]
[323172004,1713769844421,-3260.73997617,0.00016378,2]
[323172007,1713769844431,-485.90690104,0.00016378,2]
[323172009,1713769844441,-215.61228976,0.00016378,2]
[323172011,1713769844452,-1243.96601479,0.00016378,2]
[323172013,1713769844465,-2967.22577033,0.00016379,2]
[323172015,1713769844475,-906.45373151,0.00016379,2]
[323172141,1713769845778,-1301.54626849,0.00016379,2]
[323172143,1713769845787,-258.08612087,0.00016379,2]
[323172145,1713769845796,-1040.6021449,0.00016379,2]
[323172147,1713769845805,-191.70365622,0.0001638,2]
[323172149,1713769845814,-543.51368338,0.0001638,2]
[323172170,1713769845997,-426.06983525,0.0001638,2]
[323172172,1713769846008,-858.72191135,0.0001638,2]
[323172178,1713769846059,-1351.41252935,0.0001638,2]
[323172185,1713769846116,-265.848094,0.0001638,2]
[323172193,1713769846178,-5725.07994316,0.0001638,2]
[323173170,1713770328842,-622.9016,0.000129,2]
[323173171,1713770328863,-418.22,0.00013065,2]
[323173172,1713770328883,-1000.967055,0.00014365,2]
[323173173,1713770328904,-1000.967055,0.00014545,2]
[323173174,1713770328924,-181.25142386,0.00014653,2]
[323173175,1713770328947,-361.95685614,0.00014653,2]
[323173176,1713770328967,-1573.0,0.00014658,2]
[323173177,1713770329266,-1000.967055,0.00014724,2]
[323173178,1713770329317,-3129.88,0.00014812,2]
[323173179,1713770329338,-150.0,0.00014903,2]
[323173180,1713770329359,-1000.967055,0.00014904,2]
[323173181,1713770329380,-1058.9219,0.00014917,2]
[323173211,1713771032037,-287.37338502,0.00013315,2]
[323173212,1713771032093,-259.1,0.00013315,2]
[323173213,1713771032383,-1023.24,0.00013315,2]
[323173230,1713771037938,-901.6919739,0.00013315,2]
[323173543,1713771042180,-346.07619945,0.00013315,2]
[323173544,1713771042239,-666.23410652,0.00013315,2]
[323173545,1713771042252,-397.3,0.00013316,2]
[323173546,1713771042265,-250.0,0.000137,2]
[323173547,1713771042278,-150.0,0.00014841,2]
[323173548,1713771042290,-6618.908189,0.00014842,2]
[323173549,1713771042302,-5819.66407456,0.00014917,2]
[323173550,1713771042314,-960.64942786,0.00014917,2]
[323173551,1713771042326,-168.17,0.00014962,2]
[323173552,1713771042339,-200.0,0.00014978,2]
[323173553,1713771042350,-583.28062624,0.00015,2]
[323173554,1713771042366,-2643.71937376,0.00015,2]
[323173555,1713771042378,-5000.0,0.00015,2]
[323173556,1713771042390,-599.66,0.00015068,2]
[323173557,1713771042401,-522.765,0.00015068,2]
[323173558,1713771042414,-618.597,0.00015068,2]
[323173559,1713771042426,-1000.967055,0.00015083,2]
[323173560,1713771042438,-1000.0,0.00015101,2]
[323173561,1713771042451,-151.05,0.00015154,2]
[323173562,1713771042463,-1343.01,0.00015194,2]
[323173563,1713771042474,-153.82,0.00015214,2]
[323173564,1713771042486,-168.74,0.0001525,2]
[323173565,1713771042498,-599.66,0.00015342,2]
[323173566,1713771042510,-150.0,0.000155,2]
[323173567,1713771042521,-466.87890746,0.0001555,2]
[323173570,1713771042584,-33.12109254,0.0001555,2]
[323173571,1713771042596,-397.3,0.00015579,2]
[323173572,1713771042608,-599.66,0.00015616,2]
[323173573,1713771042620,-1573.0,0.00015617,2]
[323173575,1713771042631,-167.01,0.00015831,2]
[323173577,1713771042643,-152.59,0.00015831,2]
[323173578,1713771042655,-599.66,0.0001589,2]
[323173579,1713771042666,-150.0,0.0001589,2]
[323173582,1713771042677,-150.0,0.00016,2]
[323173583,1713771042690,-413.05,0.00016027,2]
[323173584,1713771042702,-1818.92,0.00016027,2]
[323173585,1713771042713,-150.0,0.00016052,2]
[323173586,1713771042726,-521.95,0.00016082,2]
[323173587,1713771042739,-306.71,0.00016082,2]
[323173589,1713771042751,-325.4,0.00016082,2]
[323173591,1713771042763,-150.0,0.00016082,2]
[323173592,1713771042775,-150.0,0.00016082,2]
[323173593,1713771042790,-159.96,0.00016082,2]
[323173594,1713771042802,-521.95,0.00016082,2]
[323173596,1713771042814,-150.0,0.00016082,2]
[323173600,1713771042825,-150.0,0.00016082,2]
[323173603,1713771042837,-150.0,0.00016082,2]
[323173606,1713771042850,-350.38,0.00016082,2]
[323173609,1713771042861,-521.95,0.00016082,2]
[323173611,1713771042875,-150.0,0.00016082,2]
[323173613,1713771042887,-350.38,0.00016082,2]
[323173615,1713771042900,-150.0,0.00016082,2]
[323173618,1713771042912,-150.0,0.00016082,2]
[323173621,1713771042924,-521.95,0.00016082,2]
[323173625,1713771042937,-150.0,0.00016082,2]
[323173628,1713771042948,-350.38,0.00016082,2]
[323173631,1713771042960,-150.0,0.00016082,2]
[323173632,1713771042973,-150.0,0.00016082,2]
[323173633,1713771042984,-521.95,0.00016082,2]
[323173634,1713771042996,-150.0,0.00016082,2]
[323173635,1713771043008,-150.0,0.00016082,2]
[323173636,1713771043020,-518.78,0.00016082,2]
[323173637,1713771043034,-150.0,0.00016082,2]
[323173638,1713771043046,-150.0,0.00016082,2]
[323173639,1713771043057,-150.0,0.00016082,2]
[323173640,1713771043069,-150.0,0.00016082,2]
[323173641,1713771043080,-150.0,0.00016082,2]
[323173642,1713771043092,-150.0,0.00016082,2]
[323173643,1713771043104,-150.0,0.00016082,2]
[323173644,1713771043115,-599.66,0.00016164,2]
[323173645,1713771043126,-521.45100971,0.0001618,2]
[323173646,1713771043306,-28805.77109029,0.0001618,2]
[323173647,1713771043318,-200.0,0.00016249,2]
[323173648,1713771043330,-1000.0,0.00016249,2]
[323173649,1713771043342,-500.0,0.00016249,2]
[323173650,1713771043353,-4777.5486,0.0001627,2]
[323173651,1713771043364,-632.0947,0.0001627,2]
[323173652,1713771043375,-156.30208825,0.0001628,2]
[323173653,1713771043386,-13843.2256873,0.0001628,2]
[323173654,1713771043397,-7500.0,0.0001628,2]
[323173655,1713771043408,-1000.0,0.000163,2]
[323173656,1713771043419,-198.16503871,0.00016338,2]
[323173657,1713771043430,-155.78127113,0.00016338,2]
[323173658,1713771043442,-432.34794884,0.00016338,2]
[323173659,1713771043454,-812.72693656,0.00016338,2]
[323173660,1713771043465,-6729.46504685,0.00016338,2]
[323173662,1713771043478,-3270.53495315,0.00016338,2]
[323173664,1713771043490,-152.59,0.00016354,2]
[323173666,1713771043501,-200.0,0.00016355,2]
[323173668,1713771043512,-170.54,0.0001636,3]
[323173670,1713771043523,-511.62,0.0001636,3]
[323173672,1713771043537,-155.87,0.0001636,2]
[323173675,1713771043548,-156.30208819,0.00016362,2]
[323173677,1713771043560,-2022.53337105,0.00016362,4]
[323173679,1713771043572,-212.09460239,0.00016368,2]
[323173681,1713771043584,-203.89539455,0.00016368,2]
[323173684,1713771043597,-452.788,0.00016369,2]
[323173689,1713771043608,-153.36292498,0.0001637,2]
[323173691,1713771043620,-24483.84051982,0.0001637,2]
[323173694,1713771043635,-700.0,0.0001637,2]
[323173797,1713771044552,-327.29498152,0.0001637,2]
[323173811,1713771044671,-913.42163015,0.0001637,2]
[323173822,1713771044765,-4037.77387647,0.0001637,2]
[323173957,1713771046092,-332.55378153,0.00016368,2]
[323173959,1713771046103,-186.00580309,0.00016368,2]
[323173961,1713771046113,-168790.81864366,0.0001637,2]
[323173963,1713771046122,-151.14,0.0001637,2]
[323173965,1713771046131,-151.14,0.0001637,2]
[323173967,1713771046140,-151.14,0.0001637,2]
[323173969,1713771046149,-1000.0,0.00016378,2]
[323173971,1713771046159,-4883.76231269,0.00016378,2]
[323173973,1713771046168,-3845.0,0.00016378,2]
[323173975,1713771046177,-255.3668917,0.00016378,2]
[323173977,1713771046186,-167.74017216,0.00016378,2]
[323173979,1713771046195,-2268.18949216,0.00016379,2]
[323173981,1713771046204,-171145.05535158,0.0001638,2]
[323174005,1713771046417,-2631.44777564,0.0001638,2]
[323174012,1713771046475,-3327.37674372,0.0001638,2]
[323174997,1713771056388,540.88171398,0.00011934,2]
[323176129,1713772097190,375.92037337,0.0001,2]
[323176140,1713772232437,-238.20007308,0.00012951,2]
[323176141,1713772232447,-203.9438348,0.00012952,2]
[323176142,1713772232456,-831.0030698,0.00012953,2]
[323176143,1713772232466,-408.41,0.00012965,2]
[323176144,1713772232477,-509.0,0.0001463,2]
[323176145,1713772232487,-94.73130856,0.0001474,2]
[323176146,1713772232500,-76.72869144,0.0001474,2]
[323176147,1713772232509,-212.78117769,0.0001477,2]
[323176148,1713772232519,-166.26220501,0.0001477,2]
[323176149,1713772232528,-85.10963984,0.0001477,2]
[323176150,1713772232548,-160.36057916,0.0001477,2]
[323176151,1713772232557,-375.63630546,0.00014817,2]
[323176152,1713772232569,-1422.70892682,0.00014817,2]
[323176153,1713772232607,-267.23393513,0.00014817,2]
[323176154,1713772232641,-520.12043259,0.00014817,2]
[323176155,1713772232651,-436.2194203,0.00014917,2]
[323176156,1713772232661,-150.0,0.00014998,2]
[323176157,1713772232670,-98.33754251,0.00014999,2]
[323176160,1713772232732,-818.3624996,0.00014999,2]
[323176163,1713772232753,-10000.0,0.00014999,2]
[323176177,1713772238127,-3478.42757392,0.00014999,2]
[323176178,1713772238139,-885.30001992,0.00014999,2]
[323176179,1713772238236,-831.07008033,0.00014999,2]
[323176180,1713772238253,-5051.60754485,0.00014999,2]
[323176181,1713772238289,-3213.09999998,0.00014999,2]
[323176353,1713772240174,-695.37508312,0.00014999,2]
[323176356,1713772240186,-644.4373745,0.00014999,2]
[323176362,1713772240232,-569.68305471,0.00014999,2]
[323176364,1713772240241,-1473.79972912,0.00015,2]
[323176366,1713772240253,-500.0,0.00015068,2]
[323176367,1713772240263,-5000.0,0.00015121,2]
[323176369,1713772240272,-1154.52,0.00015122,2]
[323176371,1713772240283,-207.83,0.00015146,2]
[323176373,1713772240293,-408.41,0.00015229,2]
[323176376,1713772240303,-450.0,0.00015323,2]
[323176377,1713772240312,-500.0,0.00015342,2]
[323176380,1713772240323,-1000.0,0.00015349,2]
[323176382,1713772240332,-150.0,0.000155,2]
[323176384,1713772240341,-500.0,0.0001555,2]
[323176385,1713772240350,-501.0,0.00015589,2]
[323176388,1713772240359,-500.0,0.00015616,2]
[323176389,1713772240368,-1000.0,0.00015732,2]
[323176392,1713772240378,-152.64,0.00015831,2]
[323176394,1713772240387,-500.0,0.0001589,2]
[323176396,1713772240396,-1000.86082691,0.00016,2]
[323176397,1713772240404,-150.0,0.00016,2]
[323176400,1713772240414,-500.0,0.00016164,2]
[323176402,1713772240423,-27931.10380441,0.0001618,2]
[323176457,1713772240932,-626.59166763,0.0001618,2]
[323176460,1713772240949,-34443.65662796,0.0001618,2]
[323176462,1713772240958,-180.21956281,0.000162,2]
[323176464,1713772240967,-194.26169195,0.000162,2]
[323176465,1713772240976,-486.93964027,0.000162,2]
[323176467,1713772240986,-14642.66937193,0.000162,2]
[323176469,1713772240997,-6668.1196,0.000162,2]
[323176471,1713772241006,-500.0,0.00016249,2]
[323176472,1713772241015,-255.81,0.0001627,3]
[323176473,1713772241024,-767.43,0.0001627,3]
[323176474,1713772241034,-155.87,0.0001627,2]
[323176475,1713772241043,-500.0,0.0001627,2]
[323176476,1713772241053,-363.64538964,0.00016278,2]
[323176477,1713772241062,-4777.5486,0.00016278,2]
[323176478,1713772241072,-1000.0,0.00016279,2]
[323176479,1713772241082,-2356.03750157,0.00016279,2]
[323176480,1713772241092,-40039.9014,0.0001628,2]
[323176481,1713772241102,-28283.28563381,0.0001628,2]
[323176482,1713772241115,-361.68980809,0.0001628,2]